fUSD/lending_fUSD_20260626
["ID","MTS","AMOUNT","RATE_DAILY","PERIOD"]
[426455875,1782412059000,500.0,0.00037221,120]
[426455877,1782412059000,163.51856307,0.00037221,120]
[426455872,1782412059000,696.957615,0.00037221,120]
[426455871,1782412059000,151.0,0.00037221,120]
[426455870,1782412059000,163.51856307,0.00037221,120]
[426455869,1782412059000,200.0,0.00037221,120]
[426455868,1782412059000,151.0,0.00037221,120]
[426455873,1782412059000,459.11885068,0.00037221,120]
[426455888,1782412060000,151.0,0.00037221,120]
[426455880,1782412060000,696.957615,0.00037221,120]
[426455881,1782412060000,151.0,0.00037221,120]
[426455884,1782412060000,459.11885068,0.00037221,120]
[426455882,1782412060000,500.0,0.00037221,120]
[426455883,1782412060000,163.51856307,0.00037221,120]
[426455886,1782412060000,696.957615,0.00037221,120]
[426455887,1782412060000,184.47,0.0001179,2]
[426455885,1782412060000,151.0,0.00037221,120]
[426455889,1782412060000,201.54276184,0.00037221,120]
[426455895,1782412060000,151.0,0.00037221,120]
[426455892,1782412060000,500.0,0.00037221,120]
[426455891,1782412060000,163.51856307,0.00037221,120]
[426455893,1782412060000,459.11885068,0.00037221,120]
[426455894,1782412060000,696.957615,0.00037221,120]
[426455896,1782412060000,500.0,0.00037221,120]
[426455898,1782412060000,151.0,0.00037221,120]
[426455899,1782412060000,696.957615,0.00037221,120]
[426455901,1782412060000,163.51856307,0.00037221,120]
[426455900,1782412060000,459.11885068,0.00037221,120]
[426455902,1782412060000,151.0,0.00037221,120]
[426455890,1782412060000,151.0,0.00037221,120]
[426455907,1782412061000,459.11885068,0.00037221,120]
[426455906,1782412061000,163.51856313,0.00037221,120]
[426455908,1782412061000,696.957615,0.00037221,120]
[426455904,1782412061000,500.0,0.00037221,120]
[426455903,1782412061000,696.957615,0.00037221,120]
[426455905,1782412061000,151.0,0.00037221,120]
[426455909,1782412061000,500.0,0.00037221,120]
[426455918,1782412061000,696.957615,0.00037221,120]
[426455911,1782412061000,151.0,0.00037221,120]
[426455916,1782412061000,500.0,0.00037221,120]
[426455917,1782412061000,151.0,0.00037221,120]
[426455915,1782412061000,500.0,0.00037221,120]
[426455910,1782412061000,500.0,0.00037221,120]
[426455912,1782412061000,151.0,0.00037221,120]
[426455913,1782412061000,696.957615,0.00037221,120]
[426455914,1782412061000,459.11885068,0.00037221,120]
[426455919,1782412062000,155.56103216,0.00037221,120]
[426455920,1782412062000,500.0,0.00037221,120]
[426455921,1782412062000,459.11885068,0.00037221,120]
[426455922,1782412062000,696.957615,0.00037221,120]
[426455924,1782412062000,151.0,0.00037221,120]
[426455925,1782412062000,500.0,0.00037221,120]
[426455923,1782412062000,500.0,0.00037221,120]
[426455926,1782412062000,696.957615,0.00037221,120]
[426455928,1782412062000,151.0,0.00037221,120]
[426455930,1782412062000,500.0,0.00037221,120]
[426455929,1782412062000,500.0,0.00037221,120]
[426455931,1782412062000,696.957615,0.00037221,120]
[426455932,1782412062000,459.11885068,0.00037221,120]
[426455927,1782412062000,459.11885068,0.00037221,120]
[426455937,1782412063000,459.11885068,0.00037221,120]
[426455934,1782412063000,500.0,0.00037221,120]
[426455935,1782412063000,696.957615,0.00037221,120]
[426455936,1782412063000,151.0,0.00037221,120]
[426455938,1782412063000,696.957615,0.00037221,120]
[426455939,1782412063000,500.0,0.00037221,120]
[426455933,1782412063000,500.0,0.00037221,120]
[426455941,1782412063000,151.0,0.00037221,120]
[426455942,1782412063000,696.957615,0.00037221,120]
[426455944,1782412063000,459.11885068,0.00037221,120]
[426455943,1782412063000,500.0,0.00037221,120]
[426455945,1782412063000,500.0,0.00037221,120]
[426455946,1782412063000,151.0,0.00037221,120]
[426455940,1782412063000,500.0,0.00037221,120]
[426455947,1782412063000,696.957615,0.00037221,120]
[426455948,1782412064000,459.11885068,0.00037221,120]
[426455949,1782412064000,696.957615,0.00037221,120]
[426455951,1782412064000,151.0,0.00037221,120]
[426455950,1782412064000,500.0,0.00037221,120]
[426455953,1782412064000,696.957615,0.00037221,120]
[426455956,1782412064000,151.0,0.00037221,120]
[426455955,1782412064000,500.0,0.00037221,120]
[426455954,1782412064000,459.11885068,0.00037221,120]
[426455957,1782412064000,696.957615,0.00037221,120]
[426455958,1782412064000,500.0,0.00037221,120]
[426455952,1782412064000,500.0,0.00037221,120]
[426455960,1782412065000,696.957615,0.00037221,120]
[426455959,1782412065000,459.11885068,0.00037221,120]
[426455961,1782412065000,500.0,0.00037221,120]
[426455963,1782412065000,151.0,0.00037221,120]
[426455964,1782412065000,696.957615,0.00037221,120]
[426455966,1782412065000,500.0,0.00037221,120]
[426455962,1782412065000,518.42813385,0.00037221,120]
[426455968,1782412065000,151.0,0.00037221,120]
[426455965,1782412065000,459.11885068,0.00037221,120]
[426455972,1782412065000,696.957615,0.00037221,120]
[426455971,1782412065000,500.0,0.00037221,120]
[426455969,1782412065000,187.78006524,0.00037221,120]
[426455967,1782412065000,696.957615,0.00037221,120]
[426455970,1782412065000,459.11885068,0.00037221,120]
[426455981,1782412066000,156.1151735,0.00037221,120]
[426455980,1782412066000,696.957615,0.00037221,120]
[426455978,1782412066000,459.11885069,0.00037221,120]
[426455977,1782412066000,151.0,0.00037221,120]
[426455976,1782412066000,696.957615,0.00037221,120]
[426455975,1782412066000,500.0,0.00037221,120]
[426455974,1782412066000,459.11885068,0.00037221,120]
[426455973,1782412066000,696.957615,0.00037221,120]
[426455979,1782412066000,500.0,0.00037221,120]
[426455982,1782412067000,696.957615,0.00037221,120]
[426455984,1782412067000,696.957615,0.00037221,120]
[426455985,1782412067000,696.957615,0.00037221,120]
[426455983,1782412067000,696.957615,0.00037221,120]
[426455987,1782412068000,696.957615,0.00037221,120]
[426455986,1782412068000,696.957615,0.00037221,120]
[426455988,1782412068000,696.957615,0.00037221,120]
[426455991,1782412069000,696.957615,0.00037221,120]
[426455990,1782412069000,696.957615,0.00037221,120]
[426455989,1782412069000,696.957615,0.00037221,120]
[426455996,1782412070000,696.957615,0.00037221,120]
[426455994,1782412070000,696.957615,0.00037221,120]
[426455993,1782412070000,696.957615,0.00037221,120]
[426455992,1782412070000,696.957615,0.00037221,120]
[426455999,1782412071000,696.957615,0.00037221,120]
[426455998,1782412071000,696.957615,0.00037221,120]
[426455997,1782412071000,696.957615,0.00037221,120]
[426456003,1782412072000,1000.0,0.00011771,2]
[426456000,1782412072000,696.957615,0.00037221,120]
[426456001,1782412072000,696.957615,0.00037221,120]
[426456004,1782412072000,696.957615,0.00037221,120]
[426456002,1782412072000,696.957615,0.00037221,120]
[426456007,1782412073000,696.957615,0.00037221,120]
[426456006,1782412073000,696.957615,0.00037221,120]
[426456005,1782412073000,696.957615,0.00037221,120]
[426456011,1782412074000,696.957615,0.00037221,120]
[426456010,1782412074000,696.957615,0.00037221,120]
[426456009,1782412074000,696.957615,0.00037221,120]
[426456008,1782412074000,696.957615,0.00037221,120]
[426456013,1782412075000,696.957615,0.00037221,120]
[426456012,1782412075000,696.957615,0.00037221,120]
[426456014,1782412076000,696.957615,0.00037228,120]
[426456015,1782412081000,365.909516,0.00037228,120]
[426456016,1782412082000,2995.210157,0.00037228,120]
[426456017,1782412087000,50000.0,0.00037228,120]
[426456018,1782412099000,200.0,0.00011776,2]
[426456019,1782412104000,500.0,0.00037228,120]
[426456020,1782412105000,500.0,0.00037228,120]
[426456021,1782412105000,500.0,0.00037228,120]
[426456022,1782412105000,500.0,0.00037228,120]
[426456026,1782412106000,500.0,0.00037228,120]
[426456025,1782412106000,500.0,0.00037228,120]
[426456024,1782412106000,500.0,0.00037228,120]
[426456023,1782412106000,500.0,0.00037228,120]
[426456028,1782412107000,193.47272334,0.00037228,120]
[426456027,1782412107000,500.0,0.00037228,120]
[426456034,1782412126000,1019.0646444,0.00011796,2]
[426456032,1782412126000,1389.05548671,0.00011796,2]
[426456033,1782412126000,200.0,0.00011796,2]
[426456031,1782412126000,1657.44611356,0.00011796,2]
[426456030,1782412126000,963.31990578,0.00011796,2]
[426456029,1782412126000,389.02384955,0.00011796,2]
[426456036,1782412127000,500.0,0.00037228,120]
[426456035,1782412127000,500.0,0.00037228,120]
[426456037,1782412128000,500.0,0.00037228,120]
[426456038,1782412128000,500.0,0.00037228,120]
[426456040,1782412128000,546.29506254,0.00037228,120]
[426456039,1782412128000,500.0,0.00037228,120]
[426456041,1782412130000,272.28829,0.0002,120]
[426456042,1782412131000,272.28829,0.00025,120]
[426456043,1782412139000,1586.0,0.00037228,120]
[426456044,1782412156000,1633.99,0.00037228,120]
[426456045,1782412163000,1218.9,0.00037228,120]
[426456047,1782412169000,-250.0,0.00011864,2]
[426456048,1782412169000,-334.16308321,0.00011869,2]
[426456046,1782412169000,-150.0,0.00011859,2]
[426456049,1782412171000,625.09,0.00037228,120]
[426456050,1782412178000,1515.5,0.00037228,120]
[426456051,1782412185000,2644.42,0.00037228,120]
[426456053,1782412186000,-469.55771195,0.00011869,2]
[426456052,1782412186000,-2736.83920484,0.00011869,2]
[426456054,1782412187000,-337.03881497,0.00011883,2]
[426456055,1782412187000,-150.0,0.00011884,2]
[426456058,1782412187000,-2736.83920484,0.00011899,2]
[426456057,1782412187000,-2736.83920484,0.00011899,2]
[426456056,1782412187000,-1780.24267792,0.00011899,2]
[426456059,1782412187000,-535.46832027,0.00011899,2]
[426456062,1782412190000,339.73229021,0.00022973,30]
[426456061,1782412190000,339.73229021,0.00022562,30]
[426456063,1782412192000,2962.26,0.00037228,120]
[426456065,1782412199000,1568.15,0.00037228,120]
[426456066,1782412205000,500.0,0.00037228,120]
[426456067,1782412206000,1784.24,0.00037228,120]
[426456069,1782412213000,2959.37,0.00037228,120]
[426456070,1782412220000,2629.77,0.00037228,120]
[426456071,1782412226000,2249.81,0.00037228,120]
[426456073,1782412228000,500.0,0.00037228,120]
[426456072,1782412228000,500.0,0.00037228,120]
[426456074,1782412229000,500.0,0.00037228,120]
[426456076,1782412229000,500.0,0.00037228,120]
[426456075,1782412229000,500.0,0.00037228,120]
[426456077,1782412230000,500.0,0.00037228,120]
[426456079,1782412230000,500.0,0.00037228,120]
[426456078,1782412230000,500.0,0.00037228,120]
[426456083,1782412231000,500.0,0.00037228,120]
[426456082,1782412231000,500.0,0.00037228,120]
[426456081,1782412231000,500.0,0.00037228,120]
[426456080,1782412231000,500.0,0.00037228,120]
[426456137,1782412232000,-195.94,0.00012149,2]
[426456139,1782412232000,-20427.5,0.00012149,2]
[426456129,1782412232000,-844.83,0.00012025,2]
[426456135,1782412232000,-166.1,0.0001214,2]
[426456131,1782412232000,-574.55,0.00012078,2]
[426456144,1782412232000,-152.0,0.00012149,2]
[426456147,1782412232000,-500.0,0.00012237,2]
[426456145,1782412232000,-152.0,0.00012149,2]
[426456146,1782412232000,-1533.21,0.0001218,2]
[426456150,1782412232000,-421.29,0.00012283,2]
[426456152,1782412232000,-285.05513885,0.00012307,2]
[426456151,1782412232000,-1621.54,0.00012301,2]
[426456141,1782412232000,-152.0,0.00012149,2]
[426456133,1782412232000,-150.0,0.00012137,2]
[426456100,1782412232000,-23298.33059213,0.00011899,2]
[426456126,1782412232000,-150.0,0.00012018,2]
[426456119,1782412232000,-531.73649619,0.00011964,2]
[426456110,1782412232000,-3970.77,0.00011901,2]
[426456113,1782412232000,-1000.0,0.00011963,2]
[426456117,1782412232000,-13230.18679738,0.00011964,2]
[426456114,1782412232000,-500.0,0.00011963,2]
[426456104,1782412232000,-152.0,0.00011899,2]
[426456102,1782412232000,-152.0,0.00011899,2]
[426456106,1782412232000,-292.0,0.00011899,2]
[426456108,1782412232000,-1000.0,0.000119,2]
[426456154,1782412232000,-166.1,0.00012451,2]
[426456098,1782412232000,-349.0,0.00011899,2]
[426456096,1782412232000,-150.0,0.00011898,2]
[426456124,1782412232000,-669.99,0.0001197,2]
[426456153,1782412232000,-574.55,0.0001238,2]
[426456122,1782412232000,-3157.55670643,0.00011964,2]
[426456149,1782412232000,-150.0,0.00012256,2]
[426456155,1782412232000,-223.17450604,0.00012507,7]
[426456182,1782412232000,-500.0,0.00013698,2]
[426456180,1782412232000,-537.14778222,0.00013587,2]
[426456181,1782412232000,-208.63313888,0.00013687,2]
[426456176,1782412232000,-517.08720398,0.00013333,2]
[426456169,1782412232000,-500.0,0.00013059,2]
[426456173,1782412232000,-160.0,0.00013201,2]
[426456171,1782412232000,-250.0,0.00013088,2]
[426456168,1782412232000,-250.0,0.00013045,2]
[426456172,1782412232000,-223.17450603,0.00013132,7]
[426456178,1782412232000,-223.17450603,0.00013508,7]
[426456179,1782412232000,-5552.44696982,0.00013521,2]
[426456174,1782412232000,-2093.23685574,0.00013233,2]
[426456175,1782412232000,-574.55,0.00013286,2]
[426456183,1782412232000,-331.18291848,0.00013698,2]
[426456170,1782412232000,-166.1,0.00013074,2]
[426456177,1782412232000,-669.99,0.00013466,2]
[426456148,1782412232000,-165.57,0.00012251,2]
[426456156,1782412232000,-500.0,0.00012511,2]
[426456166,1782412232000,-574.55,0.00012984,2]
[426456167,1782412232000,-439.15,0.00012986,2]
[426456158,1782412232000,-574.55,0.00012682,2]
[426456163,1782412232000,-250.0,0.00012873,2]
[426456165,1782412232000,-167.04,0.00012981,2]
[426456157,1782412232000,-413.82,0.00012514,2]
[426456162,1782412232000,-500.0,0.00012785,2]
[426456164,1782412232000,-3666.26,0.00012945,2]
[426456159,1782412232000,-187.26,0.00012695,2]
[426456160,1782412232000,-223.17450603,0.00012757,7]
[426456161,1782412232000,-166.1,0.00012762,2]
[426456225,1782412233000,-579.85520138,0.00013887,2]
[426456223,1782412233000,-500.0,0.00013887,2]
[426456222,1782412233000,-500.0,0.00013887,2]
[426456221,1782412233000,-797.51,0.00013863,2]
[426456228,1782412233000,-500.0,0.00013887,2]
[426456229,1782412233000,-500.0,0.00013887,2]
[426456230,1782412233000,-500.0,0.00013887,2]
[426456219,1782412233000,-151.0,0.00013786,2]
[426456217,1782412233000,-500.0,0.00013785,2]
[426456215,1782412233000,-500.0,0.00013785,2]
[426456212,1782412233000,-151.0,0.00013772,2]
[426456220,1782412233000,-528.6079233,0.00013786,2]
[426456227,1782412233000,-566.20912469,0.00013887,2]
[426456234,1782412233000,-500.0,0.00013887,2]
[426456226,1782412233000,-270.52,0.00013887,2]
[426456232,1782412233000,-500.0,0.00013887,2]
[426456231,1782412233000,-500.0,0.00013887,2]
[426456242,1782412233000,-217.13,0.00014061,2]
[426456243,1782412233000,-528.6079233,0.00014061,2]
[426456233,1782412233000,-500.0,0.00013887,2]
[426456239,1782412233000,-223.17450606,0.00014008,7]
[426456237,1782412233000,-21204.57416659,0.0001399,2]
[426456240,1782412233000,-1661.0,0.00014028,5]
[426456236,1782412233000,-528.6079233,0.00013924,2]
[426456238,1782412233000,-250.0,0.00014,2]
[426456235,1782412233000,-500.0,0.00013887,2]
[426456213,1782412233000,-500.0,0.00013785,2]
[426456241,1782412233000,-160.0,0.00014045,2]
[426456224,1782412233000,-500.0,0.00013887,2]
[426456216,1782412233000,-500.0,0.00013785,2]
[426456202,1782412233000,-1494.66,0.00013699,2]
[426456207,1782412233000,-12044.2,0.00013699,2]
[426456244,1782412233000,-150.00000005,0.00014199,2]
[426456192,1782412233000,-2259.94,0.00013699,2]
[426456193,1782412233000,-421.19,0.00013699,2]
[426456191,1782412233000,-9999.99,0.00013699,2]
[426456184,1782412233000,-500.0,0.00013698,2]
[426456186,1782412233000,-500.0,0.00013698,2]
[426456190,1782412233000,-1200.29,0.00013699,2]
[426456185,1782412233000,-503.44436268,0.00013698,2]
[426456188,1782412233000,-500.0,0.00013698,2]
[426456187,1782412233000,-500.0,0.00013698,2]
[426456189,1782412233000,-9999.99,0.00013699,2]
[426456194,1782412233000,-3758.5,0.00013699,2]
[426456197,1782412233000,-436.54,0.00013699,2]
[426456218,1782412233000,-500.0,0.00013785,2]
[426456198,1782412233000,-1658.46,0.00013699,2]
[426456195,1782412233000,-9999.99,0.00013699,2]
[426456196,1782412233000,-499.99,0.00013699,2]
[426456199,1782412233000,-4999.99,0.00013699,2]
[426456201,1782412233000,-9999.99,0.00013699,2]
[426456206,1782412233000,-1585.37,0.00013699,2]
[426456203,1782412233000,-22217.0,0.00013699,2]
[426456200,1782412233000,-150.99,0.00013699,2]
[426456204,1782412233000,-8271.56,0.00013699,2]
[426456208,1782412233000,-1564.24,0.00013699,2]
[426456210,1782412233000,-955.33013373,0.00013706,2]
[426456214,1782412233000,-500.0,0.00013785,2]
[426456211,1782412233000,-184.47,0.00013754,2]
[426456209,1782412233000,-299.99,0.00013699,2]
[426456205,1782412233000,-999.99,0.00013699,2]
[426456246,1782412233000,-528.6079233,0.00014199,2]
[426456259,1782412233000,-1431.556911,0.00014504,2]
[426456249,1782412233000,-500.0,0.000143,2]
[426456281,1782412233000,-350.83,0.00016,14]
[426456290,1782412233000,-438.319163,0.00016438,2]
[426456291,1782412233000,-151.0,0.00016438,2]
[426456294,1782412233000,-168.234652,0.00016876,2]
[426456293,1782412233000,-220.205878,0.00016842,2]
[426456292,1782412233000,-669.99,0.00016459,2]
[426456284,1782412233000,-229.422554,0.00016438,2]
[426456285,1782412233000,-229.422554,0.00016438,2]
[426456289,1782412233000,-438.319163,0.00016438,2]
[426456283,1782412233000,-229.422554,0.00016438,2]
[426456282,1782412233000,-537.14778217,0.00016275,2]
[426456286,1782412233000,-229.422554,0.00016438,2]
[426456287,1782412233000,-438.319163,0.00016438,2]
[426456288,1782412233000,-438.319163,0.00016438,2]
[426456295,1782412233000,-249.26051328,0.00016884,2]
[426456297,1782412233000,-2093.23685567,0.00016967,2]
[426456300,1782412233000,-5552.44696975,0.00017244,2]
[426456302,1782412233000,-1000.0,0.00017481,2]
[426456298,1782412233000,-217.13,0.00017186,2]
[426456307,1782412233000,-537.14778217,0.00018962,2]
[426456301,1782412233000,-955.33013369,0.000173,2]
[426456305,1782412233000,-217.13,0.00018748,2]
[426456304,1782412233000,-669.99,0.00017955,2]
[426456306,1782412233000,-2093.23685567,0.00018834,2]
[426456303,1782412233000,-184.47,0.00017684,2]
[426456296,1782412233000,-283.215372,0.00016899,2]
[426456248,1782412233000,-321.31264421,0.000143,2]
[426456309,1782412233000,-189.86987819,0.000191,2]
[426456308,1782412233000,-1073.57782202,0.000191,2]
[426456277,1782412233000,-500.0,0.00015309,2]
[426456278,1782412233000,-5552.44696975,0.00015383,2]
[426456299,1782412233000,-1621.54,0.00017221,2]
[426456276,1782412233000,-4959.2812,0.0001521,2]
[426456251,1782412233000,-246.00257268,0.000143,2]
[426456279,1782412233000,-217.13,0.00015624,2]
[426456250,1782412233000,-463.45637338,0.000143,2]
[426456253,1782412233000,-339.35077071,0.000143,2]
[426456252,1782412233000,-257.50785145,0.000143,2]
[426456254,1782412233000,-500.0,0.00014301,2]
[426456255,1782412233000,-771.34472533,0.00014348,2]
[426456245,1782412233000,-341.51607349,0.00014199,2]
[426456257,1782412233000,-151.0,0.00014504,2]
[426456267,1782412233000,-151.0,0.00014504,2]
[426456268,1782412233000,-777.37009254,0.00014592,2]
[426456256,1782412233000,-160.0,0.0001448,2]
[426456260,1782412233000,-1431.556911,0.00014504,2]
[426456258,1782412233000,-1431.556911,0.00014504,2]
[426456247,1782412233000,-216.45114417,0.00014248,2]
[426456261,1782412233000,-1431.556911,0.00014504,2]
[426456275,1782412233000,-2093.23685567,0.000151,2]
[426456271,1782412233000,-151.355539,0.00015068,2]
[426456280,1782412233000,-184.47,0.00015719,2]
[426456273,1782412233000,-151.355539,0.00015068,2]
[426456266,1782412233000,-151.0,0.00014504,2]
[426456272,1782412233000,-151.355539,0.00015068,2]
[426456270,1782412233000,-669.99,0.00014962,2]
[426456265,1782412233000,-151.0,0.00014504,2]
[426456263,1782412233000,-151.0,0.00014504,2]
[426456262,1782412233000,-151.0,0.00014504,2]
[426456264,1782412233000,-151.0,0.00014504,2]
[426456274,1782412233000,-151.355539,0.00015068,2]
[426456269,1782412233000,-1125.65,0.000149,2]
[426456354,1782412234000,-787.0,0.0002,2]
[426456347,1782412234000,-385.0,0.0002,2]
[426456348,1782412234000,-154.0,0.0002,2]
[426456355,1782412234000,-4154.0,0.0002,2]
[426456340,1782412234000,-500.0,0.00019905,2]
[426456346,1782412234000,-153.0,0.0002,2]
[426456344,1782412234000,-423.0,0.0002,2]
[426456345,1782412234000,-226.0,0.0002,2]
[426456343,1782412234000,-283.0,0.0002,2]
[426456341,1782412234000,-248.211299,0.00019925,2]
[426456349,1782412234000,-214.5,0.0002,2]
[426456351,1782412234000,-849.4515839,0.0002,2]
[426456356,1782412234000,-1001.0,0.0002,2]
[426456353,1782412234000,-170.180181,0.0002,2]
[426456357,1782412234000,-1073.57782202,0.000201,2]
[426456367,1782412234000,-3633.75731183,0.00020485,2]
[426456358,1782412234000,-5028.81463217,0.000201,2]
[426456359,1782412234000,-849.4515839,0.000202,2]
[426456360,1782412234000,-1073.57782202,0.000203,2]
[426456361,1782412234000,-5028.81463217,0.000203,2]
[426456363,1782412234000,-383.0,0.00020332,2]
[426456366,1782412234000,-849.4515839,0.000204,2]
[426456364,1782412234000,-1230.0,0.00020332,2]
[426456365,1782412234000,-6084.0,0.00020332,2]
[426456339,1782412234000,-500.0,0.00019905,2]
[426456362,1782412234000,-1277.0,0.00020332,2]
[426456350,1782412234000,-4335.0,0.0002,2]
[426456338,1782412234000,-500.0,0.00019905,2]
[426456320,1782412234000,-1073.57782202,0.000193,2]
[426456336,1782412234000,-5028.81463217,0.000199,2]
[426456369,1782412234000,-151.0,0.00020485,2]
[426456310,1782412234000,-5028.81463217,0.000191,2]
[426456314,1782412234000,-151.0,0.00019178,2]
[426456311,1782412234000,-5552.44696975,0.00019106,2]
[426456312,1782412234000,-20518.94,0.00019178,2]
[426456313,1782412234000,-151.0,0.00019178,2]
[426456318,1782412234000,-151.0,0.00019178,2]
[426456315,1782412234000,-151.0,0.00019178,2]
[426456316,1782412234000,-151.0,0.00019178,2]
[426456317,1782412234000,-151.0,0.00019178,2]
[426456319,1782412234000,-191.53036183,0.00019191,3]
[426456321,1782412234000,-189.86987819,0.000193,2]
[426456337,1782412234000,-500.0,0.00019905,2]
[426456322,1782412234000,-5028.81463217,0.000193,2]
[426456324,1782412234000,-1073.57782202,0.000195,2]
[426456328,1782412234000,-151.0,0.000197,2]
[426456325,1782412234000,-5028.81463217,0.000195,2]
[426456329,1782412234000,-151.355539,0.000197,2]
[426456330,1782412234000,-151.0,0.000197,2]
[426456327,1782412234000,-5028.81463217,0.000197,2]
[426456326,1782412234000,-1073.57782202,0.000197,2]
[426456331,1782412234000,-151.355539,0.000197,2]
[426456342,1782412234000,-1974.0,0.0002,5]
[426456332,1782412234000,-151.0,0.000197,2]
[426456333,1782412234000,-151.355539,0.000197,2]
[426456334,1782412234000,-151.355539,0.000197,2]
[426456323,1782412234000,-4015.05532469,0.00019497,2]
[426456371,1782412234000,-151.0,0.00020485,2]
[426456335,1782412234000,-1073.57782202,0.000199,2]
[426456376,1782412234000,-151.0,0.00020485,2]
[426456397,1782412234000,-150.0,0.0002058,2]
[426456415,1782412234000,-1431.556911,0.00020967,2]
[426456405,1782412234000,-2093.23685567,0.00020701,2]
[426456404,1782412234000,-5028.81463217,0.000207,2]
[426456407,1782412234000,-849.4515839,0.000208,2]
[426456408,1782412234000,-955.33013369,0.00020894,2]
[426456411,1782412234000,-151.0,0.000209,2]
[426456413,1782412234000,-215.967905,0.000209,2]
[426456414,1782412234000,-151.0,0.00020967,2]
[426456410,1782412234000,-5028.81463217,0.000209,2]
[426456409,1782412234000,-1073.57782202,0.000209,2]
[426456412,1782412234000,-151.0,0.000209,2]
[426456417,1782412234000,-1431.556911,0.00020967,2]
[426456416,1782412234000,-1431.556911,0.00020967,2]
[426456425,1782412234000,-226.0,0.00021,2]
[426456424,1782412234000,-423.0,0.00021,2]
[426456422,1782412234000,-5552.44696975,0.00020967,2]
[426456419,1782412234000,-151.0,0.00020967,2]
[426456418,1782412234000,-1431.556911,0.00020967,2]
[426456428,1782412234000,-154.0,0.00021,2]
[426456426,1782412234000,-153.0,0.00021,2]
[426456427,1782412234000,-385.0,0.00021,2]
[426456423,1782412234000,-283.0,0.00021,2]
[426456420,1782412234000,-151.0,0.00020967,2]
[426456421,1782412234000,-151.0,0.00020967,2]
[426456429,1782412234000,-1166.8396587,0.00021,2]
[426456375,1782412234000,-151.0,0.00020485,2]
[426456398,1782412234000,-150.0,0.0002058,2]
[426456401,1782412234000,-289.40019274,0.0002058,2]
[426456406,1782412234000,-3633.75731183,0.00020759,2]
[426456399,1782412234000,-150.0,0.0002058,2]
[426456370,1782412234000,-151.0,0.00020485,2]
[426456373,1782412234000,-151.0,0.00020485,2]
[426456379,1782412234000,-1500.0,0.00020485,2]
[426456368,1782412234000,-500.0,0.00020485,2]
[426456374,1782412234000,-151.0,0.00020485,2]
[426456393,1782412234000,-774.67,0.00020548,2]
[426456378,1782412234000,-151.0,0.00020485,2]
[426456372,1782412234000,-151.0,0.00020485,2]
[426456381,1782412234000,-1473.30168622,0.00020485,2]
[426456382,1782412234000,-151.0,0.00020485,2]
[426456390,1782412234000,-151.0,0.00020485,2]
[426456380,1782412234000,-151.0,0.00020485,2]
[426456383,1782412234000,-151.0,0.00020485,2]
[426456384,1782412234000,-151.0,0.00020485,2]